[Event "December 19 Early 2023"]
[Site "https://www.chess.com"]
[Date "2023.12.19"]
[Round "2"]
[White "Ruge, Edison"]
[Black "Horak, Martin"]
[Result "0-1"]
[Board "174"]
[TimeControl "180+1"]
[WhiteFideId "4401000"]
[BlackFideId "367095"]
[WhiteElo "2175"]
[BlackElo "2091"]
[WhiteTeam "COL"]
[BlackTeam "CZE"]
[WhiteClock "0:00:00"]
[BlackClock "0:00:12"]

1. e4 {[%clk 0:02:57]}  c5 {[%clk 0:02:59]} 2. Nf3 {[%clk 0:02:57]}  Nc6 {[%clk 0:02:58]} 3. d3 {[%clk 0:02:57]}  g6 {[%clk 0:02:57]} 4. Nbd2 {[%clk 0:02:58]}  Bg7 {[%clk 0:02:57]} 5. g3 {[%clk 0:02:58]}  d6 {[%clk 0:02:56]} 6. Bg2 {[%clk 0:02:59]}  Nf6 {[%clk 0:02:56]} 7. O-O {[%clk 0:02:59]}  O-O {[%clk 0:02:57]} 8. h3 {[%clk 0:02:59]}  Rb8 {[%clk 0:02:55]} 9. Re1 {[%clk 0:03:00]}  b5 {[%clk 0:02:55]} 10. e5 {[%clk 0:03:00]}  Nxe5 {[%clk 0:02:52]} 11. Nxe5 {[%clk 0:03:01]}  dxe5 {[%clk 0:02:53]} 12. Rxe5 {[%clk 0:03:00]}  Qc7 {[%clk 0:02:22]} 13. Re1 {[%clk 0:03:00]}  Bb7 {[%clk 0:02:17]} 14. Bxb7 {[%clk 0:02:58]}  Qxb7 {[%clk 0:02:16]} 15. Qf3 {[%clk 0:02:58]}  e6 {[%clk 0:02:13]} 16. Rb1 {[%clk 0:02:50]}  Rfd8 {[%clk 0:02:09]} 17. Qxb7 {[%clk 0:02:45]}  Rxb7 {[%clk 0:02:09]} 18. Ne4 {[%clk 0:02:37]}  Nxe4 {[%clk 0:02:06]} 19. dxe4 {[%clk 0:02:26]}  c4 {[%clk 0:01:54]} 20. Be3 {[%clk 0:02:17]}  Rbd7 {[%clk 0:01:54]} 21. Kf1 {[%clk 0:02:08]}  a6 {[%clk 0:01:51]} 22. Ke2 {[%clk 0:02:05]}  f5 {[%clk 0:01:42]} 23. f3 {[%clk 0:01:50]}  fxe4 {[%clk 0:01:36]} 24. fxe4 {[%clk 0:01:49]}  Be5 {[%clk 0:01:31]} 25. Rg1 {[%clk 0:01:39]}  Kg7 {[%clk 0:01:28]} 26. g4 {[%clk 0:01:25]}  Bd4 {[%clk 0:01:13]} 27. Rgd1 {[%clk 0:01:07]}  Bxe3 {[%clk 0:01:05]} 28. Rxd7+ {[%clk 0:01:05]}  Rxd7 {[%clk 0:01:06]} 29. Kxe3 {[%clk 0:01:04]}  Kf6 {[%clk 0:01:06]} 30. Rf1+ {[%clk 0:00:52]}  Ke5 {[%clk 0:01:06]} 31. Rf8 {[%clk 0:00:24]}  Rd4 {[%clk 0:01:01]} 32. Rh8 {[%clk 0:00:23]}  Rxe4+ {[%clk 0:01:02]} 33. Kd2 {[%clk 0:00:22]}  Rd4+ {[%clk 0:00:38]} 34. Kc3 {[%clk 0:00:19]}  Rd7 {[%clk 0:00:38]} 35. Ra8 {[%clk 0:00:11]}  Rd6 {[%clk 0:00:26]} 36. Rh8 {[%clk 0:00:11]}  Kf4 {[%clk 0:00:24]} 37. Rxh7 {[%clk 0:00:10]}  e5 {[%clk 0:00:24]} 38. Rf7+ {[%clk 0:00:06]}  Kg3 {[%clk 0:00:24]} 39. Re7 {[%clk 0:00:06]}  Kxh3 {[%clk 0:00:20]} 40. g5 {[%clk 0:00:06]}  Kg4 {[%clk 0:00:16]} 41. Rxe5 {[%clk 0:00:06]}  Kf4 {[%clk 0:00:17]} 42. Rc5 {[%clk 0:00:07]}  Re6 {[%clk 0:00:15]} 43. Kb4 {[%clk 0:00:06]}  Re5 {[%clk 0:00:12]} 44. Rc6 {[%clk 0:00:05]}  Rxg5 {[%clk 0:00:13]} 45. Rxa6 {[%clk 0:00:05]}  Rg2 {[%clk 0:00:14]} 46. Kxb5 {[%clk 0:00:03]}  g5 {[%clk 0:00:14]} 47. Kxc4 {[%clk 0:00:02]}  Rxc2+ {[%clk 0:00:13]} 48. Kb3 {[%clk 0:00:03]}  Rc5 {[%clk 0:00:12]} 49. Rg6 {[%clk 0:00:02]}  g4 {[%clk 0:00:12]} 50. a4 {[%clk 0:00:01]}  Rg5 {[%clk 0:00:11]} 51. Rf6+ {[%clk 0:00:01]}  Rf5 {[%clk 0:00:11]} 52. Rg6 {[%clk 0:00:00]}  g3 {[%clk 0:00:12]} 0-1

[Event "December 19 Early 2023"]
[Site "https://www.chess.com"]
[Date "2023.12.19"]
[Round "2"]
[White "Umarov, Sabir"]
[Black "Pesotskiy, Mikhail"]
[Result "0-1"]
[Board "178"]
[TimeControl "180+1"]
[WhiteFideId "14200538"]
[BlackFideId "34164453"]
[WhiteElo "2305"]
[BlackElo "2078"]
[WhiteTeam "UZB"]
[BlackTeam "RUS"]
[WhiteClock "0:00:00"]
[BlackClock "0:00:21"]

1. e4 {[%clk 0:02:58]}  e6 {[%clk 0:03:00]} 2. d4 {[%clk 0:02:55]}  d5 {[%clk 0:03:01]} 3. e5 {[%clk 0:02:51]}  c5 {[%clk 0:03:01]} 4. c3 {[%clk 0:02:50]}  Qa5 {[%clk 0:03:01]} 5. a3 {[%clk 0:02:41]}  Bd7 {[%clk 0:03:01]} 6. Nf3 {[%clk 0:02:40]}  Nh6 {[%clk 0:02:59]} 7. Bxh6 {[%clk 0:02:37]}  gxh6 {[%clk 0:03:00]} 8. Nbd2 {[%clk 0:02:36]}  Qb6 {[%clk 0:02:56]} 9. b4 {[%clk 0:02:34]}  cxd4 {[%clk 0:02:56]} 10. cxd4 {[%clk 0:02:35]}  Bb5 {[%clk 0:02:55]} 11. Rc1 {[%clk 0:02:24]}  Nc6 {[%clk 0:02:54]} 12. Nb3 {[%clk 0:02:22]}  a5 {[%clk 0:02:49]} 13. Nc5 {[%clk 0:02:03]}  axb4 {[%clk 0:02:48]} 14. axb4 {[%clk 0:02:03]}  Nxb4 {[%clk 0:02:43]} 15. Qb3 {[%clk 0:01:55]}  Bxf1 {[%clk 0:02:41]} 16. Kxf1 {[%clk 0:01:49]}  Bxc5 {[%clk 0:02:20]} 17. dxc5 {[%clk 0:01:47]}  Qa6+ {[%clk 0:02:20]} 18. Kg1 {[%clk 0:01:43]}  Nd3 {[%clk 0:02:21]} 19. Rd1 {[%clk 0:01:22]}  Nxc5 {[%clk 0:02:20]} 20. Qe3 {[%clk 0:01:22]}  Ne4 {[%clk 0:02:18]} 21. h4 {[%clk 0:01:05]}  Rg8 {[%clk 0:02:11]} 22. Kh2 {[%clk 0:01:01]}  Qa7 {[%clk 0:02:11]} 23. Nd4 {[%clk 0:00:56]}  Qa2 {[%clk 0:02:11]} 24. Rhf1 {[%clk 0:00:52]}  Ra3 {[%clk 0:02:02]} 25. Qf4 {[%clk 0:00:31]}  Qc4 {[%clk 0:01:34]} 26. Rc1 {[%clk 0:00:17]}  Rc3 {[%clk 0:01:31]} 27. Rxc3 {[%clk 0:00:15]}  Nxc3 {[%clk 0:01:32]} 28. Ra1 {[%clk 0:00:13]}  Na4 {[%clk 0:00:35]} 29. Rc1 {[%clk 0:00:12]}  Nc3 {[%clk 0:00:36]} 30. Qe3 {[%clk 0:00:12]}  Rg4 {[%clk 0:00:36]} 31. Nf3 {[%clk 0:00:06]}  d4 {[%clk 0:00:34]} 32. Qxh6 {[%clk 0:00:07]}  Qe2 {[%clk 0:00:29]} 33. Qxh7 {[%clk 0:00:02]}  Qxf2 {[%clk 0:00:29]} 34. Qh8+ {[%clk 0:00:01]}  Kd7 {[%clk 0:00:29]} 35. Rg1 {[%clk 0:00:01]}  Ne2 {[%clk 0:00:28]} 36. Qf6 {[%clk 0:00:02]}  Ke8 {[%clk 0:00:26]} 37. Qh8+ {[%clk 0:00:02]}  Kd7 {[%clk 0:00:24]} 38. Qf6 {[%clk 0:00:02]}  Qg3+ {[%clk 0:00:20]} 39. Kh1 {[%clk 0:00:00]}  Kc6 {[%clk 0:00:21]} 0-1

[Event "December 19 Early 2023"]
[Site "https://www.chess.com"]
[Date "2023.12.19"]
[Round "2"]
[White "Rushbrooke, Remy"]
[Black "Ronka, Erik"]
[Result "0-1"]
[Board "179"]
[TimeControl "180+1"]
[WhiteFideId "443590"]
[BlackFideId "505080"]
[WhiteElo "1942"]
[BlackElo "2264"]
[WhiteTeam "ENG"]
[BlackTeam "FIN"]
[WhiteClock "0:00:04"]
[BlackClock "0:00:20"]

1. Nf3 {[%clk 0:03:00]}  g6 {[%clk 0:02:50]} 2. g3 {[%clk 0:03:00]}  Bg7 {[%clk 0:02:51]} 3. Bg2 {[%clk 0:03:00]}  e5 {[%clk 0:02:50]} 4. d3 {[%clk 0:02:57]}  d6 {[%clk 0:02:44]} 5. c4 {[%clk 0:02:56]}  Nc6 {[%clk 0:02:44]} 6. Nc3 {[%clk 0:02:57]}  f5 {[%clk 0:02:45]} 7. e4 {[%clk 0:02:51]}  Nf6 {[%clk 0:02:44]} 8. O-O {[%clk 0:02:50]}  O-O {[%clk 0:02:42]} 9. Nd5 {[%clk 0:02:38]}  f4 {[%clk 0:02:38]} 10. a3 {[%clk 0:02:36]}  h6 {[%clk 0:02:37]} 11. b4 {[%clk 0:02:35]}  g5 {[%clk 0:02:37]} 12. Rb1 {[%clk 0:02:32]}  g4 {[%clk 0:02:35]} 13. Ne1 {[%clk 0:02:31]}  f3 {[%clk 0:02:34]} 14. Bh1 {[%clk 0:02:31]}  Nh7 {[%clk 0:02:29]} 15. Nc2 {[%clk 0:02:21]}  Be6 {[%clk 0:02:22]} 16. Be3 {[%clk 0:02:09]}  Ng5 {[%clk 0:02:16]} 17. Bxg5 {[%clk 0:02:09]}  Qxg5 {[%clk 0:02:17]} 18. Nce3 {[%clk 0:02:08]}  Nd4 {[%clk 0:02:12]} 19. Re1 {[%clk 0:02:04]}  Rf7 {[%clk 0:02:09]} 20. c5 {[%clk 0:01:51]}  h5 {[%clk 0:02:06]} 21. cxd6 {[%clk 0:01:49]}  cxd6 {[%clk 0:02:07]} 22. Rc1 {[%clk 0:01:48]}  Raf8 {[%clk 0:02:03]} 23. Nc4 {[%clk 0:01:25]}  Bh6 {[%clk 0:01:34]} 24. Rb1 {[%clk 0:01:05]}  Bxd5 {[%clk 0:01:34]} 25. exd5 {[%clk 0:01:05]}  Rf6 {[%clk 0:01:32]} 26. Re4 {[%clk 0:01:02]}  h4 {[%clk 0:01:25]} 27. a4 {[%clk 0:00:55]}  hxg3 {[%clk 0:01:24]} 28. hxg3 {[%clk 0:00:55]}  Bg7 {[%clk 0:01:24]} 29. Ne3 {[%clk 0:00:20]}  Ne2+ {[%clk 0:01:16]} 30. Kf1 {[%clk 0:00:17]}  Rh6 {[%clk 0:01:14]} 31. Bg2 {[%clk 0:00:15]}  Qh5 {[%clk 0:00:45]} 32. Ke1 {[%clk 0:00:14]}  Nc3 {[%clk 0:00:36]} 33. Rxg4 {[%clk 0:00:10]}  Nxd1 {[%clk 0:00:31]} 34. Rh4 {[%clk 0:00:11]}  fxg2 {[%clk 0:00:29]} 35. Nxg2 {[%clk 0:00:04]}  Qf3 {[%clk 0:00:20]} 0-1

[Event "December 19 Early 2023"]
[Site "https://www.chess.com"]
[Date "2023.12.19"]
[Round "2"]
[White "Antonio, Jorge Carlos"]
[Black "Berezin, Viktor"]
[Result "0-1"]
[Board "181"]
[TimeControl "180+1"]
[WhiteFideId "113190"]
[BlackFideId "14107872"]
[WhiteElo "2247"]
[BlackElo "2310"]
[WhiteTeam "ARG"]
[BlackTeam "UKR"]
[WhiteClock "0:01:25"]
[BlackClock "0:01:11"]

1. d4 {[%clk 0:03:00]}  Nf6 {[%clk 0:02:51]} 2. Nf3 {[%clk 0:02:59]}  g6 {[%clk 0:02:50]} 3. c4 {[%clk 0:02:59]}  Bg7 {[%clk 0:02:48]} 4. Nc3 {[%clk 0:02:59]}  O-O {[%clk 0:02:49]} 5. e4 {[%clk 0:02:59]}  d6 {[%clk 0:02:49]} 6. Be2 {[%clk 0:02:59]}  e5 {[%clk 0:02:49]} 7. O-O {[%clk 0:02:59]}  Na6 {[%clk 0:02:49]} 8. d5 {[%clk 0:02:53]}  Nc5 {[%clk 0:02:49]} 9. Qc2 {[%clk 0:02:51]}  a5 {[%clk 0:02:50]} 10. h3 {[%clk 0:02:50]}  Nh5 {[%clk 0:02:46]} 11. Ne1 {[%clk 0:02:45]}  Nf4 {[%clk 0:02:45]} 12. Nd3 {[%clk 0:02:41]}  Nxe2+ {[%clk 0:02:43]} 13. Qxe2 {[%clk 0:02:35]}  b6 {[%clk 0:02:41]} 14. Be3 {[%clk 0:02:33]}  f5 {[%clk 0:02:39]} 15. f3 {[%clk 0:02:33]}  f4 {[%clk 0:02:37]} 16. Bf2 {[%clk 0:02:32]}  g5 {[%clk 0:02:37]} 17. Kh2 {[%clk 0:02:31]}  h5 {[%clk 0:02:37]} 18. Nxc5 {[%clk 0:02:26]}  bxc5 {[%clk 0:02:37]} 19. g3 {[%clk 0:02:22]}  fxg3+ {[%clk 0:02:25]} 20. Bxg3 {[%clk 0:02:22]}  h4 {[%clk 0:02:04]} 21. Bf2 {[%clk 0:02:21]}  Qd7 {[%clk 0:02:04]} 22. Be3 {[%clk 0:01:57]}  Qxh3+ {[%clk 0:02:01]} 23. Kg1 {[%clk 0:01:57]}  g4 {[%clk 0:01:34]} 24. fxg4 {[%clk 0:01:53]}  Bxg4 {[%clk 0:01:35]} 25. Qg2 {[%clk 0:01:49]}  Qxe3+ {[%clk 0:01:35]} 26. Kh1 {[%clk 0:01:47]}  Bf3 {[%clk 0:01:34]} 27. Rxf3 {[%clk 0:01:45]}  Qxf3 {[%clk 0:01:34]} 28. Nb5 {[%clk 0:01:44]}  Rac8 {[%clk 0:01:24]} 29. Rg1 {[%clk 0:01:41]}  h3 {[%clk 0:01:14]} 30. Qxf3 {[%clk 0:01:40]}  Rxf3 {[%clk 0:01:14]} 31. Na7 {[%clk 0:01:39]}  Rb8 {[%clk 0:01:12]} 32. Nc6 {[%clk 0:01:40]}  Rxb2 {[%clk 0:01:11]} 33. Ne7+ {[%clk 0:01:38]}  Kf7 {[%clk 0:01:11]} 34. Nf5 {[%clk 0:01:39]}  Bf8 {[%clk 0:01:11]} 35. a4 {[%clk 0:01:32]}  Rff2 {[%clk 0:01:11]} 36. Rc1 {[%clk 0:01:25]}  Rh2+ {[%clk 0:01:09]} 37. Kg1 {[%clk 0:01:25]}  Rbg2+ {[%clk 0:01:10]} 38. Kf1 {[%clk 0:01:25]}  Rh1# {[%clk 0:01:11]} 0-1

[Event "December 19 Early 2023"]
[Site "https://www.chess.com"]
[Date "2023.12.19"]
[Round "2"]
[White "Hamley, Ryan"]
[Black "Kohler, Aran"]
[Result "1-0"]
[Board "184"]
[TimeControl "180+1"]
[WhiteFideId "30959497"]
[BlackFideId "1002856"]
[WhiteElo "2509"]
[BlackElo "2286"]
[WhiteTeam "USA"]
[BlackTeam "NED"]
[WhiteClock "0:00:11"]
[BlackClock "0:00:09"]

1. e4 {[%clk 0:03:00]}  c6 {[%clk 0:02:59]} 2. Nc3 {[%clk 0:02:58]}  d5 {[%clk 0:02:59]} 3. Nf3 {[%clk 0:02:58]}  Bg4 {[%clk 0:02:54]} 4. h3 {[%clk 0:02:57]}  Bxf3 {[%clk 0:02:54]} 5. Qxf3 {[%clk 0:02:58]}  e6 {[%clk 0:02:52]} 6. g3 {[%clk 0:02:53]}  Nf6 {[%clk 0:02:49]} 7. Bg2 {[%clk 0:02:52]}  d4 {[%clk 0:02:43]} 8. Ne2 {[%clk 0:02:51]}  e5 {[%clk 0:02:37]} 9. O-O {[%clk 0:02:48]}  c5 {[%clk 0:02:34]} 10. d3 {[%clk 0:02:48]}  Nc6 {[%clk 0:02:34]} 11. Bg5 {[%clk 0:02:30]}  Be7 {[%clk 0:02:33]} 12. g4 {[%clk 0:02:29]}  Nd7 {[%clk 0:02:29]} 13. Bd2 {[%clk 0:02:19]}  Bg5 {[%clk 0:02:20]} 14. Be1 {[%clk 0:02:08]}  Bh4 {[%clk 0:02:10]} 15. Ng3 {[%clk 0:02:06]}  Bxg3 {[%clk 0:02:08]} 16. Qxg3 {[%clk 0:02:07]}  O-O {[%clk 0:02:07]} 17. Bd2 {[%clk 0:02:05]}  Qf6 {[%clk 0:02:00]} 18. f4 {[%clk 0:02:05]}  exf4 {[%clk 0:01:58]} 19. Bxf4 {[%clk 0:02:05]}  Nde5 {[%clk 0:01:47]} 20. Bd2 {[%clk 0:01:49]}  Qe6 {[%clk 0:01:41]} 21. a3 {[%clk 0:01:48]}  a5 {[%clk 0:01:39]} 22. Rf5 {[%clk 0:01:33]}  g6 {[%clk 0:01:36]} 23. Rf2 {[%clk 0:01:31]}  f6 {[%clk 0:01:36]} 24. Raf1 {[%clk 0:01:30]}  Rf7 {[%clk 0:01:36]} 25. Qh4 {[%clk 0:01:29]}  g5 {[%clk 0:01:32]} 26. Qh6 {[%clk 0:01:23]}  Raf8 {[%clk 0:01:29]} 27. Bxg5 {[%clk 0:01:21]}  Ng6 {[%clk 0:01:18]} 28. Bd2 {[%clk 0:01:13]}  Nce5 {[%clk 0:01:13]} 29. Rf5 {[%clk 0:01:12]}  a4 {[%clk 0:01:06]} 30. g5 {[%clk 0:00:50]}  fxg5 {[%clk 0:01:01]} 31. Qxg5 {[%clk 0:00:50]}  Rg7 {[%clk 0:00:53]} 32. Qh6 {[%clk 0:00:29]}  Rff7 {[%clk 0:00:53]} 33. Bg5 {[%clk 0:00:22]}  Nd7 {[%clk 0:00:42]} 34. Rxf7 {[%clk 0:00:18]}  Rxf7 {[%clk 0:00:41]} 35. Rxf7 {[%clk 0:00:18]}  Qxf7 {[%clk 0:00:41]} 36. Qh5 {[%clk 0:00:19]}  Nde5 {[%clk 0:00:40]} 37. Bh6 {[%clk 0:00:17]}  b5 {[%clk 0:00:37]} 38. Qg5 {[%clk 0:00:17]}  Qe7 {[%clk 0:00:36]} 39. Qxe7 {[%clk 0:00:17]}  Nxe7 {[%clk 0:00:35]} 40. h4 {[%clk 0:00:17]}  c4 {[%clk 0:00:35]} 41. Bf1 {[%clk 0:00:13]}  N7g6 {[%clk 0:00:33]} 42. Bg5 {[%clk 0:00:11]}  Nf3+ {[%clk 0:00:31]} 43. Kf2 {[%clk 0:00:11]}  Nxg5 {[%clk 0:00:24]} 44. hxg5 {[%clk 0:00:12]}  Ne5 {[%clk 0:00:25]} 45. Kg3 {[%clk 0:00:11]}  c3 {[%clk 0:00:21]} 46. bxc3 {[%clk 0:00:11]}  dxc3 {[%clk 0:00:21]} 47. d4 {[%clk 0:00:12]}  b4 {[%clk 0:00:20]} 48. axb4 {[%clk 0:00:11]}  a3 {[%clk 0:00:09]} 49. dxe5 {[%clk 0:00:11]} 1-0

[Event "December 19 Early 2023"]
[Site "https://www.chess.com"]
[Date "2023.12.19"]
[Round "2"]
[White "Limontaite, Simona"]
[Black "Rogov, Matfey"]
[Result "1-0"]
[Board "185"]
[TimeControl "180+1"]
[WhiteFideId "12802506"]
[BlackFideId "44191308"]
[WhiteElo "2092"]
[BlackElo "2057"]
[WhiteTeam "LTU"]
[BlackTeam "RUS"]
[WhiteClock "0:00:09"]
[BlackClock "0:00:02"]

1. d4 {[%clk 0:03:00]}  e6 {[%clk 0:02:59]} 2. c4 {[%clk 0:03:01]}  b6 {[%clk 0:02:58]} 3. Nc3 {[%clk 0:03:01]}  Bb7 {[%clk 0:02:58]} 4. d5 {[%clk 0:03:01]}  Nf6 {[%clk 0:02:53]} 5. e4 {[%clk 0:03:01]}  exd5 {[%clk 0:02:52]} 6. exd5 {[%clk 0:03:00]}  Bc5 {[%clk 0:02:52]} 7. Bd3 {[%clk 0:02:56]}  O-O {[%clk 0:02:52]} 8. Nge2 {[%clk 0:02:57]}  d6 {[%clk 0:02:52]} 9. O-O {[%clk 0:02:57]}  h6 {[%clk 0:02:51]} 10. b3 {[%clk 0:02:56]}  Nbd7 {[%clk 0:02:51]} 11. Bb2 {[%clk 0:02:56]}  Re8 {[%clk 0:02:48]} 12. Ng3 {[%clk 0:02:55]}  Ne5 {[%clk 0:02:44]} 13. Bc2 {[%clk 0:02:56]}  Bc8 {[%clk 0:02:40]} 14. Na4 {[%clk 0:02:38]}  Bg4 {[%clk 0:02:35]} 15. Qd2 {[%clk 0:02:32]}  Nh5 {[%clk 0:02:24]} 16. Nxc5 {[%clk 0:02:27]}  bxc5 {[%clk 0:02:22]} 17. f4 {[%clk 0:02:13]}  Nxg3 {[%clk 0:02:17]} 18. hxg3 {[%clk 0:02:13]}  Nd7 {[%clk 0:02:04]} 19. Rfe1 {[%clk 0:02:03]}  f5 {[%clk 0:01:48]} 20. Re3 {[%clk 0:01:44]}  Rxe3 {[%clk 0:01:32]} 21. Qxe3 {[%clk 0:01:45]}  Nf8 {[%clk 0:00:57]} 22. Re1 {[%clk 0:01:40]}  Kf7 {[%clk 0:00:46]} 23. Qc3 {[%clk 0:01:34]}  Qf6 {[%clk 0:00:44]} 24. Qxf6+ {[%clk 0:01:24]}  gxf6 {[%clk 0:00:45]} 25. a3 {[%clk 0:01:24]}  h5 {[%clk 0:00:37]} 26. Kf2 {[%clk 0:01:24]}  Nd7 {[%clk 0:00:26]} 27. Re6 {[%clk 0:01:22]}  Re8 {[%clk 0:00:23]} 28. Rxe8 {[%clk 0:01:20]}  Kxe8 {[%clk 0:00:24]} 29. b4 {[%clk 0:01:21]}  cxb4 {[%clk 0:00:15]} 30. axb4 {[%clk 0:01:22]}  Nb6 {[%clk 0:00:15]} 31. Bb3 {[%clk 0:01:13]}  Ke7 {[%clk 0:00:15]} 32. Bd4 {[%clk 0:01:06]}  Kf7 {[%clk 0:00:11]} 33. Ke3 {[%clk 0:01:04]}  Ke7 {[%clk 0:00:11]} 34. Kd2 {[%clk 0:01:05]}  Kf7 {[%clk 0:00:11]} 35. c5 {[%clk 0:01:03]}  Nc8 {[%clk 0:00:10]} 36. Bc4 {[%clk 0:00:55]}  Ke7 {[%clk 0:00:07]} 37. Ba6 {[%clk 0:00:54]}  dxc5 {[%clk 0:00:07]} 38. bxc5 {[%clk 0:00:47]}  Kd7 {[%clk 0:00:07]} 39. Bxf6 {[%clk 0:00:44]}  Ne7 {[%clk 0:00:06]} 40. Bxe7 {[%clk 0:00:40]}  Kxe7 {[%clk 0:00:07]} 41. Be2 {[%clk 0:00:26]}  Kd7 {[%clk 0:00:02]} 42. Bxg4 {[%clk 0:00:26]}  hxg4 {[%clk 0:00:03]} 43. Kc3 {[%clk 0:00:26]}  Ke7 {[%clk 0:00:03]} 44. Kb4 {[%clk 0:00:27]}  Kd7 {[%clk 0:00:03]} 45. Kb5 {[%clk 0:00:27]}  c6+ {[%clk 0:00:03]} 46. Ka6 {[%clk 0:00:08]}  cxd5 {[%clk 0:00:03]} 47. Kb7 {[%clk 0:00:08]}  d4 {[%clk 0:00:03]} 48. c6+ {[%clk 0:00:09]}  Ke7 {[%clk 0:00:03]} 49. c7 {[%clk 0:00:09]}  d3 {[%clk 0:00:04]} 50. c8=Q {[%clk 0:00:10]}  d2 {[%clk 0:00:02]} 51. Qc2 {[%clk 0:00:09]} 1-0

[Event "December 19 Early 2023"]
[Site "https://www.chess.com"]
[Date "2023.12.19"]
[Round "2"]
[White "Guimaraes, Wagner Peixoto"]
[Black "Dubnevych, Maksym"]
[Result "1-0"]
[Board "187"]
[TimeControl "180+1"]
[WhiteFideId "2100940"]
[BlackFideId "14184001"]
[WhiteElo "2140"]
[BlackElo "2131"]
[WhiteTeam "BRA"]
[BlackTeam "UKR"]
[WhiteClock "0:01:21"]
[BlackClock "0:01:51"]

1. e4 {[%clk 0:03:00]}  e5 {[%clk 0:02:56]} 2. Nf3 {[%clk 0:02:58]}  Nc6 {[%clk 0:02:54]} 3. Nc3 {[%clk 0:02:56]}  Nf6 {[%clk 0:02:52]} 4. Bb5 {[%clk 0:02:56]}  Bd6 {[%clk 0:02:50]} 5. d3 {[%clk 0:02:47]}  h6 {[%clk 0:02:49]} 6. Bxc6 {[%clk 0:02:46]}  dxc6 {[%clk 0:02:49]} 7. h3 {[%clk 0:02:47]}  O-O {[%clk 0:02:48]} 8. Nd2 {[%clk 0:02:47]}  Be6 {[%clk 0:02:45]} 9. Qe2 {[%clk 0:02:46]}  Bb4 {[%clk 0:02:44]} 10. Nd1 {[%clk 0:02:44]}  c5 {[%clk 0:02:43]} 11. c3 {[%clk 0:02:43]}  Ba5 {[%clk 0:02:43]} 12. Ne3 {[%clk 0:02:43]}  c6 {[%clk 0:02:42]} 13. Ndc4 {[%clk 0:02:42]}  Bc7 {[%clk 0:02:41]} 14. g4 {[%clk 0:02:34]}  b5 {[%clk 0:02:39]} 15. Nd2 {[%clk 0:02:33]}  Nh7 {[%clk 0:02:31]} 16. Nf5 {[%clk 0:02:17]}  Bxf5 {[%clk 0:02:26]} 17. gxf5 {[%clk 0:02:18]}  Qh4 {[%clk 0:02:25]} 18. Nf3 {[%clk 0:02:15]}  Qh5 {[%clk 0:02:24]} 19. Be3 {[%clk 0:02:11]}  c4 {[%clk 0:02:20]} 20. dxc4 {[%clk 0:02:01]}  bxc4 {[%clk 0:02:21]} 21. O-O-O {[%clk 0:02:00]}  Bb6 {[%clk 0:02:18]} 22. Rhg1 {[%clk 0:01:49]}  f6 {[%clk 0:02:17]} 23. Rg6 {[%clk 0:01:37]}  Kh8 {[%clk 0:02:08]} 24. Rd7 {[%clk 0:01:28]}  Rg8 {[%clk 0:02:01]} 25. Nxe5 {[%clk 0:01:26]}  Bxe3+ {[%clk 0:01:58]} 26. fxe3 {[%clk 0:01:21]}  Qxe2 {[%clk 0:01:51]} 27. Nf7# {[%clk 0:01:21]} 1-0

[Event "December 19 Early 2023"]
[Site "https://www.chess.com"]
[Date "2023.12.19"]
[Round "2"]
[White "Korkmaz, Necmettin"]
[Black "Player, Edmund C"]
[Result "1-0"]
[Board "188"]
[TimeControl "180+1"]
[WhiteFideId "6303285"]
[BlackFideId "406520"]
[WhiteElo "2044"]
[BlackElo "2015"]
[WhiteTeam "TUR"]
[BlackTeam "ENG"]
[WhiteClock "0:00:32"]
[BlackClock "0:00:00"]

1. e4 {[%clk 0:03:00]}  Nf6 {[%clk 0:02:59]} 2. e5 {[%clk 0:02:56]}  Nd5 {[%clk 0:02:58]} 3. c4 {[%clk 0:02:53]}  Nb6 {[%clk 0:02:58]} 4. d4 {[%clk 0:02:53]}  d6 {[%clk 0:02:58]} 5. exd6 {[%clk 0:02:50]}  exd6 {[%clk 0:02:58]} 6. Nc3 {[%clk 0:02:50]}  Nc6 {[%clk 0:02:58]} 7. Nf3 {[%clk 0:02:49]}  Be7 {[%clk 0:02:58]} 8. Be2 {[%clk 0:02:47]}  O-O {[%clk 0:02:57]} 9. O-O {[%clk 0:02:47]}  Bf6 {[%clk 0:02:56]} 10. Re1 {[%clk 0:02:47]}  Bg4 {[%clk 0:02:56]} 11. Be3 {[%clk 0:02:44]}  d5 {[%clk 0:02:44]} 12. c5 {[%clk 0:02:29]}  Nc8 {[%clk 0:02:43]} 13. h3 {[%clk 0:02:23]}  Bh5 {[%clk 0:02:37]} 14. g4 {[%clk 0:02:11]}  Bg6 {[%clk 0:02:36]} 15. g5 {[%clk 0:02:11]}  Be7 {[%clk 0:02:30]} 16. Qb3 {[%clk 0:02:09]}  Be4 {[%clk 0:02:08]} 17. Qxb7 {[%clk 0:02:07]}  Qd7 {[%clk 0:01:31]} 18. Qxa8 {[%clk 0:01:47]}  Nd6 {[%clk 0:01:22]} 19. Qxf8+ {[%clk 0:01:33]}  Kxf8 {[%clk 0:01:22]} 20. cxd6 {[%clk 0:01:33]}  Bxd6 {[%clk 0:00:55]} 21. Kg2 {[%clk 0:01:16]}  Nb4 {[%clk 0:00:20]} 22. Rac1 {[%clk 0:00:56]}  Nd3 {[%clk 0:00:08]} 23. Bxd3 {[%clk 0:00:55]}  Bxd3 {[%clk 0:00:09]} 24. Nxd5 {[%clk 0:00:55]}  Qf5 {[%clk 0:00:07]} 25. Nc3 {[%clk 0:00:45]}  Bb4 {[%clk 0:00:05]} 26. Nd2 {[%clk 0:00:39]}  Ba6 {[%clk 0:00:03]} 27. f3 {[%clk 0:00:36]}  Bc8 {[%clk 0:00:02]} 28. Rh1 {[%clk 0:00:34]}  Qd3 {[%clk 0:00:02]} 29. Kf2 {[%clk 0:00:34]}  Ba6 {[%clk 0:00:00]} 30. Rhe1 {[%clk 0:00:32]} 1-0